Cogmind - Beta 13 @@@ ROGUE MODE // 2024.06.02 @ 10:33:41 Player: CrossedViper Result: Destroyed by D-53 Grenadier with Mini Grenade Launcher Performance ------------- Evolutions (0) 0 Regions Visited (2) 400 Robots Destroyed (29) 145 Value Destroyed (525) 525 Prototype IDs (0) 0 Alien Tech Used (0) 0 Bonus (35) 35 TOTAL SCORE: 1105 Bonus ------- Follower Combat Kills 35 Cogmind --------- Core Integrity 0/250 Matter 263/300 Energy 79/100 System Corruption 0% Temperature Cool (0) Movement Core (50) Location -10/Mines Parts ------- > --- POWER (1) -------- (None) > --- PROPULSION (2) --- Light Treads > --- UTILITY (2) ------ (None) > --- WEAPON (2) ------- Beam Cannon > --- INVENTORY (5) ---- High-capacity Storage Unit Transport Network Coupler Light Armor Plating Makeshift Sword Peak State ------------ > --- POWER ------------ Ion Engine > --- PROPULSION ------- Light Treads Light Treads > --- UTILITY ---------- Large Storage Unit Structural Scanner > --- WEAPON ----------- Beam Cannon Assault Rifle > --- INVENTORY -------- Light Treads Aluminum Leg Aluminum Leg Sensor Array Small Laser Small Laser Particle Gun Datajack Mining Claw [Rating: 8] Favorites ----------- Power Ion Engine Engine Ion Engine Propulsion Light Treads Treads Light Treads Utility Large Storage Unit Device Structural Scanner Storage Large Storage Unit Protection Light Armor Plating Weapon Assault Rifle Energy Gun Small Laser Energy Cannon Beam Cannon Ballistic Gun Assault Rifle Slashing Weapon Mining Claw Build | -11 -10 -10 ------- Run | Yrd Mat Min Slots Evolved . | . . . Power . | . . . Propulsion . | . . . Utility . | . . . Weapon . | . . . Parts Attached 21 | 7 10 4 Power 1 | 1 . . Engine 1 | 1 . . Core . | . . . Reactor . | . . . Propulsion 6 | 2 2 2 Treads 6 | 2 2 2 Leg . | . . . Wheel . | . . . Hover . | . . . Flight . | . . . Utility 6 | 2 2 2 Device 2 | 1 1 . Storage 2 | 1 1 . Processor . | . . . Hackware . | . . . Protection 2 | . . 2 Artifact . | . . . Weapon 8 | 2 6 . Energy Gun 1 | 1 . . Energy Cannon 3 | . 3 . Ballistic Gun 1 | 1 . . Ballistic Cannon . | . . . Launcher . | . . . Special Weapon . | . . . Impact Weapon . | . . . Slashing Weapon 3 | . 3 . Piercing Weapon . | . . . Special Melee Weapon . | . . . Unidentified Prototypes . | . . . Parts Lost 6 | . . 6 Power 1 | . . 1 Propulsion 3 | . . 3 Utility 2 | . . 2 Weapon . | . . . Highest Loss Streak 5 | . . 5 To Critical Strikes . | . . . Average Slot Usage (%) 99 | . 99 98 Engine 13 | . 14 13 Treads 27 | . 27 28 Device 9 | . 14 1 Storage 13 | . 14 13 Protection 4 | . . 12 Energy Gun 2 | . 3 . Energy Cannon 9 | . 7 14 Ballistic Gun 13 | . 14 13 Slashing Weapon 1 | . 2 . Naked Turns . | . . . Heaviest Build 33 | 14 31 33 Greatest Support 40 | 40 40 40 Greatest Overweight (x) 2 | . 1 2 Average Overweight (x) . | . . . Largest Inventory Capacity 15 | 8 15 15 Average Capacity 13 | 7 14 14 Most Carried 15 | 4 15 13 Average Carried 8 | 2 10 11 Final Capacity 15 | 8 15 5 Final Carried 13 | 3 13 4 Class Distribution -------------------- 100% | Mutant Dominant Class ---------------- Mutant | -10/Materials Mutant | -10/Mines Resources | -11 -10 -10 ----------- Run | Yrd Mat Min Matter Collected 508 | 294 179 35 Remotely . | . . . Salvage Created 875 | 181 658 36 Parts 59 | 10 47 2 Haulers Intercepted 1 | . 1 . Recyclers Shooed 3 | 1 2 . Parts Field Recycled . | . . . Retrieved Matter . | . . . Parts Self-Destructed . | . . . Prevented . | . . . Kills | -11 -10 -10 ------- Run | Yrd Mat Min Combat Hostiles Destroyed 16 | . 13 3 Melee 2 | . 2 . Guns 8 | . 7 1 Cannons 6 | . 4 2 Classes Destroyed 8 | 3 5 . Worker 3 | 2 1 . Builder 2 | . 2 . Tunneler 2 | 2 . . Hauler 1 | . 1 . Recycler 2 | 1 1 . Watcher 3 | . 3 . Swarmer 6 | . 3 3 Grunt 10 | . 10 . Best Kill Streak 5 | 3 5 1 Combat Bots Only 3 | . 3 1 Max Kills in Single Turn 1 | 1 1 1 Gunslinging . | . . . Exploded . | . . . Melee 1 | . 1 . Uniques/NPCs Destroyed . | . . . Combat | -11 -10 -10 -------- Run | Yrd Mat Min Hostile Shots Fired 60 | . 27 33 Missed 14 | . 9 5 Damage Taken 1002 | . 188 814 Core 251 | . 60 191 Absorbed by Shields . | . . . Core Remaining (%) 100 | 100 . . Volleys Fired 55 | 8 37 10 Largest 2 | 2 2 2 Hottest 80 | 60 80 80 Shots Fired 105 | 16 69 20 Gun 73 | 16 47 10 Cannon 32 | . 22 10 Launcher . | . . . Special . | . . . Kinetic 55 | 8 37 10 Thermal 50 | 8 32 10 Explosive . | . . . Electromagnetic . | . . . Robot Hit Streak 8 | 7 8 6 Robot Miss Streak 4 | 4 4 2 Penetration Max . | . . . Secondary Targets . | . . . Shots Hit Robots 63 | 9 41 13 Core Hits 32 | 6 24 2 Critical Kills 1 | . 1 . Critical Parts Destroyed . | . . . Critical Strikes 1 | . 1 . Destroy 1 | . 1 . Melee Attacks 7 | . 7 . Impact . | . . . Slashing 7 | . 7 . Piercing . | . . . Sneak Attacks 1 | . 1 . Combat Hostiles . | . . . Follow-up Attacks . | . . . Damage Inflicted 1026 | 104 710 212 Guns 501 | 104 331 66 Cannons 402 | . 256 146 Explosions . | . . . Melee 122 | . 122 . Ramming 1 | . 1 . Kinetic 364 | 39 259 66 Thermal 539 | 65 328 146 Explosive . | . . . Electromagnetic . | . . . Impact . | . . . Slashing 122 | . 122 . Piercing . | . . . Highest Corruption . | . . . Average Corruption . | . . . Corruption Purged . | . . . Corruption Blocked . | . . . Overload Shots . | . . . Overflow Damage 12 | . . 12 Projectiles 12 | . . 12 Explosions . | . . . Melee . | . . . Knockbacks . | . . . Impact . | . . . Kinetic . | . . . Secondary . | . . . Self-Inflicted Damage . | . . . Shots . | . . . Rammed 1 | . 1 . Targets Rammed 1 | . 1 . Kicked . | . . . Crushed . | . . . Highest Temperature 184 | . 184 126 Average Temperature 58 | . 64 44 Received Heat Transfer 105 | . 87 18 Siege Activations . | . . . Robots Corrupted . | . . . Combat Hostiles . | . . . Parts Fried . | . . . Impact Corruptions . | . . . Robots Melted . | . . . Combat Hostiles . | . . . Parts Melted 1 | . 1 . Heat Transferred 1114 | 150 668 296 Parts Sabotaged . | . . . Parts Stolen . | . . . Parts Stripped . | . . . Power Chain Reactions . | . . . Alert | -11 -10 -10 ------- Run | Yrd Mat Min Peak Influence 295 | 25 295 263 Initial 76 | . 16 76 Average 114 | 19 139 148 Maximum Alert Level 1 | . 1 1 Low Security (%) 79 | 100 70 80 Level 1 20 | . 29 19 Level 2 . | . . . Level 3 . | . . . Level 4 . | . . . Level 5 . | . . . High Security . | . . . Max Security . | . . . Squads Dispatched 3 | . 3 . Investigation 3 | . 3 . Extermination . | . . . Reinforcement . | . . . Assault . | . . . Garrison . | . . . Intercept . | . . . Searches Triggered . | . . . Construction Impeded . | . . . Haulers Reinforced . | . . . Active Scanning Responses . | . . . Cargo Convoy Interrupts . | . . . Stealth | -11 -10 -10 --------- Run | Yrd Mat Min Distress Signals 2 | . 2 . Communications Jammed . | . . . Distress Signals . | . . . Times Spotted 28 | . 18 10 Peak Tracking Total 6 | . 6 3 Tactical Retreats 2 | . 1 1 Traps | -11 -10 -10 ------- Run | Yrd Mat Min Traps Triggered 1 | . 1 . Indirectly . | . . . Trap Hack Attempts . | . . . Triggered . | . . . Disarmed . | . . . Reprogrammed . | . . . Reused . | . . . Traps Extracted . | . . . Installed . | . . . Triggered . | . . . Machines | -11 -10 -10 ---------- Run | Yrd Mat Min Machines Disabled 1 | . 1 . Max in Single Turn 1 | . 1 . Machines Repaired . | . . . Machines Dismantled . | . . . Machines Sabotaged . | . . . Overloaded Fab Kills . | . . . Hacking | -11 -10 -10 --------- Run | Yrd Mat Min Machines Accessed 5 | . 4 1 Terminals 3 | . 2 1 Fabricators . | . . . Repair Stations . | . . . Recycling Units 2 | . 2 . Scanalyzers . | . . . Garrison Access . | . . . Total Hacks 15 | . 12 3 Successful 8 | . 7 1 Failed 7 | . 5 2 Catastrophic 1 | . 1 . Database Lockouts . | . . . Manual 16 | . 13 3 Terminals 13 | . 10 3 Fabricators . | . . . Repair Stations . | . . . Recycling Units 2 | . 2 . Scanalyzers . | . . . Garrison Access . | . . . Terminal Hacks 6 | . 5 1 Part Schematic 2 | . 2 . Robot Analysis 4 | . 3 1 Fabricator Hacks . | . . . Repair Station Hacks . | . . . Recycling Unit Hacks . | . . . Scanalyzer . | . . . Garrison Access Hacks . | . . . Unauthorized Hacks 2 | . 2 . Terminals . | . . . Fabricators . | . . . Repair Stations . | . . . Recycling Units 2 | . 2 . Tunnel 2 | . 2 . Scanalyzers . | . . . Garrison Access . | . . . Data Cores Recovered . | . . . Used . | . . . Hacking Detections 3 | . 2 1 Full Trace Events 2 | . 2 . Feedback Events . | . . . Feedback Blocked . | . . . Robot Schematics Acquired . | . . . Robots Built . | . . . Authchips . | . . . Time . | . . . Total Robot Build Rating . | . . . Part Schematics Acquired 2 | . 2 . Parts Built . | . . . Authchips . | . . . Time . | . . . Total Part Build Rating . | . . . Parts Repaired . | . . . Time . | . . . Parts Recycled . | . . . Recycled Matter . | . . . Retrieved Matter . | . . . Retrieved Components . | . . . Parts Scanalyzed . | . . . Part Schematics Acquired . | . . . Parts Damaged . | . . . Bothacking | -11 -10 -10 ------------ Run | Yrd Mat Min Used RIF Installer . | . . . Robots Hacked . | . . . Non-combat . | . . . Combat . | . . . Robot Hacks Applied . | . . . Relay Couplers Released . | . . . Fabnet Peak Effective % . | . . . Robots Rewired . | . . . Allies Hacked . | . . . Hacks Repelled . | . . . Allies | -11 -10 -10 -------- Run | Yrd Mat Min Total Allies 3 | . . 3 Largest Group 3 | . . 3 Highest-Rated Group 40 | . . 40 Highest-Rated Ally 16 | . . 16 Total Orders . | . . . Ally Attacks 28 | . . 28 Total Damage 268 | . . 268 Kills 5 | . . 5 Allies Corrupted . | . . . Allies Melted . | . . . Intel | -11 -10 -10 ------- Run | Yrd Mat Min Robot Analysis Total 4 | . 3 1 Derelict Logs Recovered 1 | . . 1 Drone Launches . | . . . Drone Recoveries . | . . . Exploration | -11 -10 -10 ------------- Run | Yrd Mat Min Turns Passed 1674 | 375 868 431 Spaces Moved 709 | 73 397 239 Core 30 | 14 . 16 Treads 679 | 59 397 223 Legs . | . . . Wheels . | . . . Hover . | . . . Flight . | . . . Fastest Speed 50 | 50 160 50 Average Speed 155 | 138 160 153 Slowest Speed 240 | 160 240 160 Overloaded Moves . | . . . Propulsion Burnouts . | . . . Robots Hopped . | . . . Cave-ins Triggered . | . . . Exploration Rate (%) 44 | 5 64 64 Regions Visited 2 Branch Regions 1 Pre-discovered Areas 2 | . 2 . Known Exits Taken . | . . . Unknown Exits Taken 2 | 1 1 . Scrap Searched . | . . . Spaces Dug 2 | . 2 . Terrain Destroyed 2 | . 2 . Melee 2 | . 2 . Projectile . | . . . AOE . | . . . Terrain Rammed . | . . . Walls Destroyed . | . . . Machines Disabled . | . . . Actions | -11 -10 -10 --------- Run | Yrd Mat Min Total 1162 | 330 543 289 Wait 336 | 234 76 26 Move 707 | 72 396 239 Hop . | . . . Pick Up 22 | 9 12 1 Fast Attach 4 | 1 3 . Attach 10 | 6 . 4 Detach . | . . . Swap 7 | . 7 . Drop 13 | . 4 9 Fire 55 | 8 37 10 Melee 7 | . 7 . Ram . | . . . Kick . | . . . Crush 1 | . 1 . Escape Stasis . | . . . Rewire . | . . . Trap . | . . . Miscellaneous . | . . . Route ------- -11/Scrapyard -10/Materials (discovered 3 exits: [*Mat x2] / *Min) -10/Mines (discovered 2 exits: [*Mat x2]) History --------- Turn | Location | Event 33 | -11/Scrapyard | Discovered new exit (range 16) 376 | -11/Scrapyard | Entered Materials 377 | -10/Materials | Build established: Mutant 465 | -10/Materials | Discovered new exit (range 7) 678 | -10/Materials | Discovered new exit (range 16) 916 | -10/Materials | Discovered new exit (range 10) 1244 | -10/Materials | Entered Mines 1318 | -10/Mines | Discovered new exit (range 5) 1402 | -10/Mines | Assisted by bots powering up and referring to "LRC-V3" 1458 | -10/Mines | Discovered new exit (range 15) 1625 | -10/Mines | Assembled infested the area 1634 | -10/Mines | A weapon hastily lodged in a ceiling crevice suddenly fell to the ground 1669 | -10/Mines | Core integrity fell below 50% 1672 | -10/Mines | Core integrity fell below 20% 1675 | -10/Mines | Destroyed by D-53 Grenadier with Mini Grenade Launcher Last Messages --------------- 01661_ Dropped Datajack. 01662_ Dropped Mining Claw. 01662_ Dropped Sml. Laser. 01663_ The unstable cave ceiling collapses. 01663_ Dropped Particle Gun. 01663_ K-01 Serf collects debris. 01663_ K-01 Serf destroyed. 01663_ U-05 Engineer builds a Wall. 01663_ Dropped Lrg. Storage Unit. 01664_ The unstable cave ceiling collapses. 01666_ Dropped Assault Rifle. 01667_ Dropped Lgt. Armor Plating. 01668_ U-05 Engineer builds a Wall. 01668_ Lgt. Treads destroyed. 01668_ U-05 Engineer destroyed. 01669_ The unstable cave ceiling collapses. 01670_ Lgt. Treads destroyed. 01672_ The unstable cave ceiling collapses. 01672_ Particle Gun crushed. 01674_ The unstable cave ceiling collapses. Map ----- +----------------------------------------------------+ | ??????????????????????????????????????# ##? | | ???????????????#####??????????????????## ## | | ??????????????# ???????????????????# # | | ???????????### ??????????????????## | | ?????????## ?????????########## | | ????????## ??????????# | | ?????#### ??????????????####### #### | | ???## #??????????????# ####### ##??# | | ### #???????????????# ##??# | | #????????????????# ###### #???## | | #???????????????????????## ###### | | # ##??????????????????????## # | | # #??????????####????????# # | | ## #??????????# ? ##### # | | ?### # ##??????????# #???# # | | ???## ## ##???????????# ###### #???# # | | ????##### ###??????????# #????# ## ##???# # | | ??????### ######?????# #????## #?# #????# # | | ?????## ## ##????# #?????###??# #????# # | | ????## #????# #####?????## #????# # | | ????# # ##???# ??????? #????# # | | ????# # ! ##### #?????????# #????# # | | ????# #! # ######????# #????# # | | ????# d d #????# #????# # | | ????# % #????# ##???# # | | ????## ## # @##### #???## ##??# # | | ????=%= # #???# #???# #### # | | ???# [==###### #???# #??## ## < | | ???# %#????## # ## # t #??# #### | | ???# *%#??????????#####k###??# | | ???# #??????????????###????# | | ???# #?????????????????????##### ### ##### | | ???# #?????????????????????????######?#####???? | | ???# #????????????????????????????????????????? | | ???#####?????????????????????????????????????????? | | ?????????????????????????????????????????????????? | | ?????????????????????????????????????????????????? | | | | | | | | | | | | | | | | | | | | | | | | | | | +----------------------------------------------------+ Best States ------------- Heat Dissipation 25 Energy Generation 10 Energy Capacity 250 Matter Stores 300 Matter Capacity 300 Sight Range 16 Terrain Scan Density 10 Armor Coverage 150 Evasion (%) 50 Recoil Reduction 2 Item Schematics ----------------- Huge Storage Unit | -10/Materials | Hacked ECM Suite | -10/Materials | Hacked Robot Schematics ------------------ None Fabricated ------------ Nothing Alien Tech Used ----------------- None Achievements -------------- None Challenges ------------ None Game ------ Seed CombatRecyclingNeutralizer Manual? 0 Play Time 00:10:50 Cumulative 807.8 hours Start 2024.06.02 @ 10:24:59 End 2024.06.02 @ 10:33:41 Sessions 1 Manual Loads 0 Difficulty Rogue Special Mode None Game No. 515 Rogue 508 Adventurer 0 Explorer 7 Win Type - Total 55 Types 20/5/19/2/0/1/6/1/1 Lore% 90 Gallery% 96 Achievement% 84 Wizard Run 0 Options --------- Layout 2 ASCII 0 Keyboard 0 Movement Numpad Keybinds 0 Fullscreen 1 Font 24/Tamsyn Map View 50x44 Zoom Use 0% Tactical HUD 1 Map Filters NONE Filters NONE Steam 1 RUN: aab3d27c-510c-41d8-ad37-89828e82c3cc